fUST/lending_fUST_20240220
["ID","MTS","AMOUNT","RATE_DAILY","PERIOD"]
[314563202,1708427441139,-500.0,0.00020822,2]
[314563204,1708427441148,-500.0,0.00020822,2]
[314563206,1708427441158,-360.31820954,0.00020822,2]
[314563208,1708427441167,-214.74397145,0.00020822,2]
[314563211,1708427441180,-109.68907236,0.00020822,2]
[314563213,1708427441190,-318.82175748,0.00020822,2]
[314563215,1708427441199,-191.08681561,0.00020822,2]
[314563218,1708427441218,-308.91318439,0.00020822,2]
[314563220,1708427441227,-353.23909773,0.00020822,2]
[314563222,1708427441237,-500.0,0.00020822,2]
[314563224,1708427441246,-488.14216932,0.00020822,2]
[314563226,1708427441255,-500.0,0.00020822,2]
[314563228,1708427441264,-373.58381677,0.00020822,2]
[314563230,1708427441273,-500.0,0.00020822,2]
[314563232,1708427441283,-212.2265072,0.00020822,2]
[314563234,1708427441296,-1284.68880887,0.00020822,2]
[314563236,1708427441306,-159.21010805,0.00020822,2]
[314563238,1708427441316,-500.0,0.00020822,2]
[314563240,1708427441325,-1284.68880887,0.00020822,2]
[314563242,1708427441335,-500.0,0.00020822,2]
[314563244,1708427441344,-500.0,0.00020822,2]
[314563246,1708427441353,-1284.68880887,0.00020822,2]
[314563247,1708427441362,-500.0,0.00020822,2]
[314563249,1708427441371,-730.81868993,0.00020822,2]
[314563252,1708427441385,-553.87011894,0.00020822,2]
[314563254,1708427441394,-1284.68880887,0.00020822,2]
[314563256,1708427441403,-1284.68880887,0.00020822,2]
[314563258,1708427441412,-500.0,0.00020822,2]
[314563260,1708427441424,-1284.68880887,0.00020822,2]
[314563262,1708427441438,-1284.68880887,0.00020822,2]
[314563264,1708427441448,-500.0,0.00020822,2]
[314563266,1708427441457,-1284.68880887,0.00020822,2]
[314563268,1708427441467,-500.0,0.00020822,2]
[314563270,1708427441476,-1284.68880887,0.00020822,2]
[314563272,1708427441485,-1284.68880887,0.00020822,2]
[314563274,1708427441494,-1284.68880887,0.00020822,2]
[314563276,1708427441503,-1284.68880887,0.00020822,2]
[314563278,1708427441512,-1284.68880887,0.00020822,2]
[314563280,1708427441521,-1284.68880887,0.00020822,2]
[314563282,1708427441530,-1284.68880887,0.00020822,2]
[314563283,1708427441539,-1284.68880887,0.00020822,2]
[314563285,1708427441551,-1284.68880887,0.00020822,2]
[314563287,1708427441560,-1284.68880887,0.00020822,2]
[314563289,1708427441570,-1284.68880887,0.00020822,2]
[314563291,1708427441579,-1284.68880887,0.00020822,2]
[314563293,1708427441588,-1284.68880887,0.00020822,2]
[314563295,1708427441597,-1284.68880887,0.00020822,2]
[314563297,1708427441607,-1284.68880887,0.00020822,2]
[314563299,1708427441617,-1284.68880887,0.00020822,2]
[314563301,1708427441626,-1284.68880887,0.00020822,2]
[314563303,1708427441636,-1284.68880887,0.00020822,2]
[314563305,1708427441645,-1284.68880887,0.00020822,2]
[314563307,1708427441655,-1284.68880887,0.00020822,2]
[314563309,1708427441665,-1284.68880887,0.00020822,2]
[314563311,1708427441674,-1284.68880887,0.00020822,2]
[314563313,1708427441684,-1284.68880887,0.00020822,2]
[314563315,1708427441693,-1284.68880887,0.00020822,2]
[314563317,1708427441703,-1284.68880887,0.00020822,2]
[314563319,1708427441713,-1284.68880887,0.00020822,2]
[314563321,1708427441722,-1284.68880887,0.00020822,2]
[314563323,1708427441733,-1284.68880887,0.00020822,2]
[314563326,1708427441742,-1284.68880887,0.00020822,2]
[314563327,1708427441752,-1284.68880887,0.00020822,2]
[314563330,1708427441763,-1284.68880887,0.00020822,2]
[314563331,1708427441773,-1284.68880887,0.00020822,2]
[314563333,1708427441782,-1284.68880887,0.00020822,2]
[314563335,1708427441792,-1284.68880887,0.00020822,2]
[314563337,1708427441803,-1284.68880887,0.00020822,2]
[314563339,1708427441812,-1284.68880887,0.00020822,2]
[314563342,1708427441822,-1284.68880887,0.00020822,2]
[314563344,1708427441832,-1284.68880887,0.00020822,2]
[314563346,1708427441842,-500.0,0.00020822,2]
[314563348,1708427441853,-500.0,0.00020822,2]
[314563350,1708427441863,-500.0,0.00020822,2]
[314563352,1708427441872,-500.0,0.00020822,2]
[314563354,1708427441881,-500.0,0.00020822,2]
[314563356,1708427441890,-343.16828734,0.00020822,2]
[314563357,1708427441899,-500.0,0.00020822,2]
[314563359,1708427441909,-500.0,0.00020822,2]
[314563361,1708427441918,-500.0,0.00020822,2]
[314563363,1708427441927,-500.0,0.00020822,2]
[314563365,1708427441936,-500.0,0.00020822,2]
[314563367,1708427441945,-500.0,0.00020822,2]
[314563369,1708427441955,-500.0,0.00020822,2]
[314563371,1708427441964,-500.0,0.00020822,2]
[314563373,1708427441973,-500.0,0.00020822,2]
[314563375,1708427441982,-544.04161175,0.00020822,2]
[314563377,1708427441991,-500.0,0.00020822,2]
[314563379,1708427442001,-500.0,0.00020822,2]
[314563381,1708427442010,-250.0,0.00020822,2]
[314563383,1708427442019,-500.0,0.00020822,2]
[314563385,1708427442028,-500.0,0.00020822,2]
[314563386,1708427442037,-500.0,0.00020822,2]
[314563387,1708427442047,-500.0,0.00020822,2]
[314563388,1708427442056,-500.0,0.00020822,2]
[314563389,1708427442065,-500.0,0.00020822,2]
[314563390,1708427442074,-500.0,0.00020822,2]
[314563391,1708427442083,-500.0,0.00020822,2]
[314563392,1708427442092,-500.0,0.00020822,2]
[314563393,1708427442101,-500.0,0.00020822,2]
[314563394,1708427442110,-500.0,0.00020822,2]
[314563395,1708427442119,-500.0,0.00020822,2]
[314563396,1708427442128,-500.0,0.00020822,2]
[314563397,1708427442137,-1529.33669517,0.00020822,2]
[314563398,1708427442146,-254.60887799,0.00020822,2]
[314563399,1708427442155,-500.0,0.00020822,2]
[314563400,1708427442164,-1529.33669517,0.00020822,2]
[314563401,1708427442173,-500.0,0.00020822,2]
[314563402,1708427442182,-500.0,0.00020822,2]
[314563404,1708427442193,-1529.33669517,0.00020822,2]
[314563405,1708427442202,-500.0,0.00020822,2]
[314563406,1708427442211,-500.0,0.00020822,2]
[314563407,1708427442219,-500.0,0.00020822,2]
[314563408,1708427442229,-1529.33669517,0.00020822,2]
[314563409,1708427442238,-500.0,0.00020822,2]
[314563411,1708427442248,-1372.55382739,0.00020822,2]
[314563414,1708427442261,-156.78286778,0.00020822,2]
[314563416,1708427442271,-500.0,0.00020822,2]
[314563418,1708427442280,-500.0,0.00020822,2]
[314563421,1708427442290,-500.0,0.00020822,2]
[314563424,1708427442302,-1529.33669517,0.00020822,2]
[314563426,1708427442311,-208.65118611,0.00020822,2]
[314563429,1708427442320,-500.0,0.00020822,2]
[314563430,1708427442329,-1529.33669517,0.00020822,2]
[314563432,1708427442338,-500.0,0.00020822,2]
[314563434,1708427442349,-500.0,0.00020822,2]
[314563437,1708427442358,-500.0,0.00020822,2]
[314563440,1708427442367,-132.34520817,0.00020822,2]
[314563444,1708427442379,-1396.991487,0.00020822,2]
[314563447,1708427442389,-500.0,0.00020822,2]
[314563449,1708427442398,-105.25745386,0.00020822,2]
[314563485,1708427442731,-146.26830284,0.00020822,2]
[314563487,1708427442741,-500.0,0.00020822,2]
[314563489,1708427442750,-500.0,0.00020822,2]
[314563491,1708427442759,-500.0,0.00020822,2]
[314563493,1708427442768,-500.0,0.00020822,2]
[314563495,1708427442778,-1529.33669517,0.00020822,2]
[314563497,1708427442787,-500.0,0.00020822,2]
[314563499,1708427442798,-632.23556344,0.00020822,2]
[314563501,1708427442807,-500.0,0.00020822,2]
[314563503,1708427442817,-147.43286195,0.00020822,2]
[314563520,1708427442973,-2487.25325987,0.0002017,3]
[314563847,1708427445911,-277.17674013,0.0002017,3]
[314563849,1708427445920,-1381.90383322,0.00020822,2]
[314563851,1708427445929,-500.0,0.00020822,2]
[314563853,1708427445939,-500.0,0.00020822,2]
[314563855,1708427445949,-500.0,0.00020822,2]
[314563857,1708427445959,-1529.33669517,0.00020822,2]
[314563859,1708427445969,-500.0,0.00020822,2]
[314563861,1708427445978,-1529.33669517,0.00020822,2]
[314563863,1708427445988,-486.81866996,0.00020822,2]
[314563865,1708427445998,-1529.33669517,0.00020822,2]
[314563867,1708427446007,-1529.33669517,0.00020822,2]
[314563869,1708427446016,-1529.33669517,0.00020822,2]
[314563871,1708427446026,-1260.49642934,0.00020822,2]
[314564718,1708427474177,9500.0,0.0002,10]
[314564719,1708427571538,167.9753557,0.00019558,2]
[314564720,1708427576830,1136.84975941,0.000189,2]
[314564722,1708427872344,250.0,0.00019481,2]
[314564723,1708427884915,17615.11382985,0.00019481,2]
[314564724,1708427976142,-500.0,0.0001948,2]
[314564725,1708427976170,-526.0,0.00019481,2]
[314564864,1708428205602,-1000000.0,0.00030002,30]
[314564865,1708428211725,-150.5,0.00027691,35]
[314564866,1708428211748,-2913.0,0.00027691,35]
[314564867,1708428211770,-150.5,0.00027691,35]
[314564868,1708428211792,-150.5,0.00027691,35]
[314564869,1708428211818,-230.0,0.00027691,35]
[314564870,1708428211997,-2913.0,0.00027691,35]
[314564871,1708428212021,-286.75,0.00027691,35]
[314564872,1708428212044,-217.6,0.00027691,35]
[314564873,1708428212067,-230.0,0.00027691,35]
[314564874,1708428212091,-150.5,0.00027701,35]
[314564875,1708428212114,-2913.0,0.00027701,35]
[314564876,1708428212136,-150.5,0.00027701,35]
[314564877,1708428212159,-150.5,0.00027701,35]
[314564878,1708428212182,-230.0,0.00027701,35]
[314564879,1708428212206,-2913.0,0.00027701,35]
[314564880,1708428212229,-150.5,0.00027701,35]
[314564881,1708428212252,-150.5,0.00027701,35]
[314564882,1708428212274,-150.5,0.00027701,35]
[314564883,1708428212297,-230.0,0.00027701,35]
[314564884,1708428212320,-2913.0,0.00027701,35]
[314564885,1708428212343,-2922.61,0.00027701,35]
[314564886,1708428212366,-230.0,0.00027701,35]
[314564887,1708428212388,-239.37,0.00027701,35]
[314564888,1708428212411,-150.5,0.00027711,35]
[314564889,1708428212434,-2913.0,0.00027711,35]
[314564890,1708428212457,-150.5,0.00027711,35]
[314564891,1708428212480,-150.5,0.00027711,35]
[314564892,1708428212502,-230.0,0.00027711,35]
[314564893,1708428212527,-2913.0,0.00027711,35]
[314564894,1708428212549,-150.5,0.00027711,35]
[314564895,1708428212572,-150.5,0.00027711,35]
[314564896,1708428212595,-150.5,0.00027711,35]
[314564897,1708428212618,-2913.0,0.00027711,35]
[314564898,1708428212642,-230.0,0.00027711,35]
[314564899,1708428212665,-291.63,0.00027711,35]
[314564900,1708428212692,-2913.0,0.00027711,35]
[314564901,1708428212717,-230.0,0.00027711,35]
[314564902,1708428212741,-230.0,0.00027711,35]
[314564903,1708428212789,-158.409756,0.00030959,35]
[314564904,1708428212813,-158.409756,0.00030959,44]
[314564905,1708428212835,-158.409756,0.00030959,52]
[314564906,1708428212859,-158.409756,0.00030959,60]
[314564907,1708428212882,-158.409756,0.00030959,69]
[314564908,1708428212904,-158.409756,0.00030959,77]
[314564909,1708428212929,-158.409756,0.00030959,86]
[314564910,1708428212951,-158.409756,0.00030959,94]
[314564911,1708428212975,-158.409756,0.00030959,103]
[314564912,1708428212999,-158.409756,0.00030959,111]
[314564913,1708428213022,-158.409756,0.00030959,119]
[314564914,1708428213045,-200.0,0.00031103,120]
[314564915,1708428213076,-788.61853025,0.00033,120]
[314564916,1708428213102,-1445.16307307,0.00034898,120]
[314564917,1708428213126,-50000.0,0.00035,60]
[314564918,1708428213149,-464.30294427,0.00035,120]
[314564919,1708428213172,-1727.05104583,0.000355,120]
[314564920,1708428213199,-158.0,0.00036,120]
[314564921,1708428213224,-2417.45047028,0.00036225,120]
[314564922,1708428213248,-1047.0,0.00037,120]
[314564923,1708428213271,-500000.0,0.00037,60]
[314564924,1708428213292,-4950.26793133,0.00037,120]
[314564925,1708428213315,-200.0,0.00037098,120]
[314564926,1708428213337,-72848.19245153,0.00037691,60]
[314564927,1708428213360,-9939.65345709,0.00038,90]
[314564928,1708428234429,-704169.26300543,0.00030002,30]
[314564929,1708428234459,-47795.40252473,0.00030002,30]
[314564930,1708428234487,-16300.23575892,0.00030002,30]
[314564931,1708428234516,-231735.09871092,0.00030002,30]
[314564932,1708428241210,-2615.168945,0.00030002,120]
[314564933,1708428241233,-699.25787003,0.00030002,120]
[314564934,1708428241255,-383.43912746,0.00030002,120]
[314564935,1708428241278,-471.11363357,0.00030002,120]
[314564936,1708428241301,-968.96751337,0.00030002,120]
[314564937,1708428241325,-202.63083256,0.00030002,120]
[314564938,1708428241350,-1151.56751818,0.00030002,120]
[314564939,1708428241374,-2450.31986448,0.00030002,120]
[314564940,1708428241399,-1219.00773779,0.00030002,120]
[314564941,1708428241422,-498.52529461,0.00030002,120]
[314564942,1708428241447,-170.51527951,0.00030002,120]
[314564943,1708428241470,-1360.07958985,0.00030002,120]
[314564944,1708428241494,-500.0,0.00030002,120]
[314564945,1708428241516,-6434.53323372,0.00030002,60]
[314564946,1708428241544,-637.44178283,0.00030002,120]
[314564947,1708428241569,-1010.25242948,0.00030002,120]
[314564948,1708428262963,-31687.61808824,0.00030002,30]
[314564949,1708428262986,-766.72782341,0.00030002,30]
[314564950,1708428263009,-29999.999999,0.00030002,31]
[314564951,1708428263034,-937545.65408935,0.00030002,30]
[314564952,1708428387464,-500.0,0.00018899,2]
[314564957,1708428566997,954.532653,0.00018704,2]
[314564977,1708428632013,-757.89983961,0.000189,2]
[314564978,1708428632023,-380.41784824,0.00019092,2]
[314564990,1708428638292,-3275.46023404,0.00019092,2]
[314565042,1708428641151,-64.55298342,0.00019092,2]
[314565044,1708428641161,-7044.3972667,0.00019175,2]
[314565046,1708428641170,-23567.8851664,0.00019178,2]
[314565048,1708428641181,-172.152563,0.00019178,2]
[314565049,1708428641190,-179.989503,0.00019178,2]
[314565050,1708428641200,-419.27218616,0.00019452,2]
[314565051,1708428641210,-1839.45400531,0.0002003,10]
[314565052,1708428641219,-155.52590624,0.00020193,2]
[314565053,1708428641229,-803.48697731,0.00020194,2]
[314565054,1708428641238,-5000.0,0.00020194,2]
[314565055,1708428641248,-5000.0,0.00020194,2]
[314565056,1708428641258,-8094.03350412,0.00020194,2]
[314565057,1708428641270,-354.5950386,0.00020194,2]
[314565079,1708428643026,-4812.97349436,0.00020194,2]
[314565080,1708428643035,-1007.028755,0.000203,2]
[314565081,1708428643045,-1000.0,0.000208,2]
[314565082,1708428643054,-281.97856009,0.00020821,2]
[314565083,1708428643065,-3521.08,0.0002099,3]
[314565084,1708428643075,-2934.23,0.0002099,3]
[314565085,1708428643084,-2379.80264351,0.00021,2]
[314565086,1708428643094,-354.0766493,0.00021,2]
[314565087,1708428643103,-9603.8355337,0.00021,2]
[314565088,1708428643113,-5499.99999304,0.00021,2]
[314565089,1708428643122,-1853.49,0.00021014,3]
[314565090,1708428643130,-349.54,0.00021024,3]
[314565091,1708428643140,-174.77,0.00021024,3]
[314565092,1708428643148,-524.34,0.00021024,3]
[314565093,1708428643158,-50000.0,0.00021034,2]
[314565094,1708428643168,-1006.4819557,0.00021186,2]
[314565095,1708428643177,-500.0,0.00021255,2]
[314565096,1708428643186,-583.32783616,0.00021256,2]
[314565097,1708428643195,-362.18260028,0.00021256,2]
[314565098,1708428643204,-500.0,0.00021256,2]
[314565099,1708428643213,-161.23236451,0.00021256,2]
[314565100,1708428643223,-500.0,0.00021256,2]
[314565101,1708428643232,-500.0,0.00021256,2]
[314565102,1708428643241,-532.72674644,0.00021256,2]
[314565103,1708428643250,-500.0,0.00021256,2]
[314565104,1708428643259,-500.0,0.00021256,2]
[314565105,1708428643268,-532.72674644,0.00021256,2]
[314565106,1708428643278,-500.0,0.00021256,2]
[314565107,1708428643287,-500.0,0.00021256,2]
[314565108,1708428643297,-500.0,0.00021256,2]
[314565109,1708428643306,-500.0,0.00021256,2]
[314565110,1708428643317,-532.72674644,0.00021256,2]
[314565111,1708428643326,-500.0,0.00021256,2]
[314565112,1708428643335,-532.72674644,0.00021256,2]
[314565113,1708428643345,-232.56257632,0.00021256,2]
[314565114,1708428643354,-444.66886066,0.00021256,2]
[314565115,1708428643363,-532.72674644,0.00021256,2]
[314565116,1708428643372,-500.0,0.00021256,2]
[314565117,1708428643381,-532.72674644,0.00021256,2]
[314565118,1708428643391,-377.95332332,0.00021256,2]
[314565119,1708428643400,-379.98752318,0.00021256,2]
[314565120,1708428643409,-532.72674644,0.00021256,2]
[314565121,1708428643418,-532.72674644,0.00021256,2]
[314565122,1708428643427,-532.72674644,0.00021256,2]
[314565123,1708428643437,-500.0,0.00021256,2]
[314565124,1708428643445,-532.72674644,0.00021256,2]
[314565125,1708428643455,-500.0,0.00021256,2]
[314565126,1708428643464,-532.72674644,0.00021256,2]
[314565127,1708428643473,-500.0,0.00021256,2]
[314565128,1708428643482,-532.72674644,0.00021256,2]
[314565129,1708428643492,-500.0,0.00021256,2]
[314565130,1708428643501,-532.72674644,0.00021256,2]
[314565131,1708428643511,-532.72674644,0.00021256,2]
[314565132,1708428643520,-532.72674644,0.00021256,2]
[314565133,1708428643529,-500.0,0.00021256,2]
[314565134,1708428643538,-532.72674644,0.00021256,2]
[314565135,1708428643548,-532.72674644,0.00021256,2]
[314565136,1708428643557,-500.0,0.00021256,2]
[314565137,1708428643569,-532.72674644,0.00021256,2]
[314565138,1708428643578,-532.72674644,0.00021256,2]
[314565139,1708428643588,-500.0,0.00021256,2]
[314565140,1708428643597,-532.72674644,0.00021256,2]
[314565141,1708428643606,-532.72674644,0.00021256,2]
[314565142,1708428643616,-500.0,0.00021256,2]
[314565143,1708428643625,-532.72674644,0.00021256,2]
[314565144,1708428643635,-532.72674644,0.00021256,2]
[314565145,1708428643647,-532.72674644,0.00021256,2]
[314565146,1708428643656,-532.72674644,0.00021256,2]
[314565147,1708428643666,-532.72674644,0.00021256,2]
[314565148,1708428643675,-532.72674644,0.00021256,2]
[314565149,1708428643686,-532.72674644,0.00021256,2]
[314565150,1708428643695,-532.72674644,0.00021256,2]
[314565151,1708428643704,-532.72674644,0.00021256,2]
[314565152,1708428643713,-532.72674644,0.00021256,2]
[314565153,1708428643724,-532.72674644,0.00021256,2]
[314565154,1708428643733,-532.72674644,0.00021256,2]
[314565155,1708428643743,-532.72674644,0.00021256,2]
[314565156,1708428643752,-532.72674644,0.00021256,2]
[314565157,1708428643761,-532.72674644,0.00021256,2]
[314565158,1708428643770,-532.72674644,0.00021256,2]
[314565159,1708428643779,-532.72674644,0.00021256,2]
[314565160,1708428643788,-532.72674644,0.00021256,2]
[314565161,1708428643798,-532.72674644,0.00021256,2]
[314565162,1708428643807,-532.72674644,0.00021256,2]
[314565163,1708428643819,-532.72674644,0.00021256,2]
[314565164,1708428643829,-532.72674644,0.00021256,2]
[314565165,1708428643839,-532.72674644,0.00021256,2]
[314565166,1708428643848,-532.72674644,0.00021256,2]
[314565167,1708428643857,-532.72674644,0.00021256,2]
[314565168,1708428643866,-532.72674644,0.00021256,2]
[314565169,1708428643875,-532.72674644,0.00021256,2]
[314565170,1708428643884,-532.72674644,0.00021256,2]
[314565171,1708428643894,-532.72674644,0.00021256,2]
[314565172,1708428643903,-532.72674644,0.00021256,2]
[314565173,1708428643912,-532.72674644,0.00021256,2]
[314565174,1708428643922,-532.72674644,0.00021256,2]
[314565175,1708428643931,-532.72674644,0.00021256,2]
[314565176,1708428643940,-532.72674644,0.00021256,2]
[314565177,1708428643949,-532.72674644,0.00021256,2]
[314565178,1708428643958,-532.72674644,0.00021256,2]
[314565179,1708428643968,-532.72674644,0.00021256,2]
[314565180,1708428643978,-532.72674644,0.00021256,2]
[314565181,1708428643987,-532.72674644,0.00021256,2]
[314565182,1708428643996,-532.72674644,0.00021256,2]
[314565183,1708428644005,-532.72674644,0.00021256,2]
[314565184,1708428644014,-532.72674644,0.00021256,2]
[314565185,1708428644024,-532.72674644,0.00021256,2]
[314565186,1708428644033,-532.72674644,0.00021256,2]
[314565187,1708428644043,-519.40857779,0.00021256,2]
[314565188,1708428644052,-519.40857779,0.00021256,2]
[314565189,1708428644063,-519.40857779,0.00021256,2]
[314565190,1708428644071,-519.40857779,0.00021256,2]
[314565191,1708428644081,-519.40857779,0.00021256,2]
[314565192,1708428644090,-519.40857779,0.00021256,2]
[314565193,1708428644099,-519.40857779,0.00021256,2]
[314565194,1708428644109,-519.40857779,0.00021256,2]
[314565195,1708428644118,-519.40857779,0.00021256,2]
[314565196,1708428644127,-519.40857779,0.00021256,2]
[314565197,1708428644136,-519.40857779,0.00021256,2]
[314565198,1708428644145,-519.40857779,0.00021256,2]
[314565199,1708428644155,-519.40857779,0.00021256,2]
[314565200,1708428644164,-519.40857779,0.00021256,2]
[314565201,1708428644173,-519.40857779,0.00021256,2]
[314565202,1708428644182,-519.40857779,0.00021256,2]
[314565203,1708428644191,-519.40857779,0.00021256,2]
[314565204,1708428644201,-519.40857779,0.00021256,2]
[314565205,1708428644210,-519.40857779,0.00021256,2]
[314565206,1708428644219,-519.40857779,0.00021256,2]
[314565207,1708428644228,-519.40857779,0.00021256,2]
[314565208,1708428644388,-519.40857779,0.00021256,2]
[314565209,1708428644398,-519.40857779,0.00021256,2]
[314565210,1708428644408,-519.40857779,0.00021256,2]
[314565211,1708428644418,-81777.89933511,0.00021257,2]
[314565212,1708428644436,-1976.46361379,0.00021257,2]
[314565229,1708428646056,-1687.179011,0.00021257,2]
[314574673,1708429297114,-151.04229184,0.00023897,30]
[314574674,1708429315674,-1000.0,0.00022,20]
[314574675,1708429315699,-1000.0,0.00022,22]
[314574676,1708429315724,-300.0,0.000221,10]
[314574677,1708429315810,-1000.0,0.00023,23]
[314574678,1708429315878,-300.0,0.000236,10]
[314574679,1708429315915,-1000.0,0.00024,24]
[314574680,1708429332015,-401.41173054,0.00019178,2]
[314574681,1708429332042,-687.296418,0.00019352,2]
[314574682,1708429332066,-167.975353,0.00019576,2]
[314574683,1708429332089,-635.86596027,0.00020099,2]
[314574684,1708429332113,-16694.6301389,0.0002018,2]
[314574685,1708429332136,-237.18,0.00020189,3]
[314574686,1708429332160,-711.58,0.00020189,3]
[314574687,1708429332188,-3313.4,0.00020189,3]
[314574688,1708429332223,-2761.17,0.00020189,3]
[314574689,1708429332246,-155.04341216,0.00020198,2]
[314574690,1708429332273,-50000.0,0.00020199,2]
[314574691,1708429332299,-24234.44698713,0.00020199,2]
[314574713,1708429573866,350.0,0.00018,2]
[314574714,1708429626629,350.0,0.00018,2]
[314574715,1708429641177,350.0,0.00018,2]
[314574716,1708429649115,155.05892239,0.00018,2]
[314574717,1708429667120,155.06202481,0.00018,2]
[314574718,1708429683109,236.20293602,0.00018,2]
[314574728,1708429816390,151.05891298,0.00023858,30]
[314574749,1708429832172,-292.40995609,0.00019051,2]
[314574750,1708429832182,-292.40995609,0.00019052,2]
[314574751,1708429832192,-292.40995609,0.00019053,2]
[314574752,1708429832201,-162.15450539,0.00019057,2]
[314574753,1708429832210,-1057.23796978,0.00019157,2]
[314574754,1708429832220,-343.648209,0.00019196,2]
[314574755,1708429832229,-190.79278106,0.00019999,2]
[314574756,1708429832238,-29619.9489506,0.0002,2]
[314574758,1708429832248,-508.6927682,0.00020099,2]
[314574760,1708429832257,-474.36,0.00020189,3]
[314574762,1708429832267,-1489.55,0.00020189,3]
[314574764,1708429832277,-2681.56,0.00020189,3]
[314574766,1708429832287,-899.88463007,0.00020197,2]
[314574768,1708429832296,-229.75848477,0.00020197,2]
[314574770,1708429832306,-330.5031,0.00020198,2]
[314574772,1708429832316,-8665.77996431,0.00020199,2]
[314574775,1708429832328,-17099.77304856,0.00020199,2]
[314574776,1708429832337,-50000.0,0.00020199,2]
[314574778,1708429832347,-50000.0,0.00020199,2]
[314574780,1708429832357,-80495.60182319,0.00020199,2]
[314574782,1708429832366,-11631.52989141,0.00020199,2]
[314574784,1708429832375,-2625.0,0.00020202,2]
[314574786,1708429832385,-508.69276818,0.00020339,2]
[314574788,1708429832394,-2504.73528785,0.000205,2]
[314574790,1708429832403,-200.4151623,0.00020548,2]
[314574792,1708429832412,-153.0,0.00020548,2]
[314574794,1708429832421,-200.4151623,0.00020548,2]
[314574796,1708429832433,-400.6313428,0.00020548,2]
[314574798,1708429832442,-508.69276818,0.00020578,2]
[314574800,1708429832451,-508.69276818,0.00020818,2]
[314574802,1708429832460,-500.0,0.00020822,2]
[314574804,1708429832469,-500.0,0.00020822,2]
[314574806,1708429832478,-500.0,0.00020822,2]
[314574808,1708429832487,-500.0,0.00020822,2]
[314574810,1708429832497,-460.82018712,0.00020822,2]
[314574812,1708429832506,-500.0,0.00020822,2]
[314574814,1708429832515,-500.0,0.00020822,2]
[314574816,1708429832524,-591.93823158,0.00020822,2]
[314574818,1708429832533,-1507.05163638,0.00020822,2]
[314574820,1708429832542,-596.96796726,0.00020822,2]
[314574822,1708429832551,-500.0,0.00020822,2]
[314574824,1708429832560,-1507.05163638,0.00020822,2]
[314574826,1708429832569,-650.55295163,0.00020822,2]
[314574828,1708429832578,-500.0,0.00020822,2]
[314574830,1708429832587,-500.0,0.00020822,2]
[314574832,1708429832597,-500.0,0.00020822,2]
[314574834,1708429832606,-577.00295732,0.00020822,2]
[314574836,1708429832615,-170.8048787,0.00020822,2]
[314574838,1708429832624,-500.0,0.00020822,2]
[314574840,1708429832633,-1507.05163638,0.00020822,2]
[314574842,1708429832643,-500.0,0.00020822,2]
[314574844,1708429832652,-500.0,0.00020822,2]
[314574846,1708429832661,-1507.05163638,0.00020822,2]
[314574848,1708429832670,-500.0,0.00020822,2]
[314574850,1708429832679,-500.0,0.00020822,2]
[314574852,1708429832688,-408.60082792,0.00020822,2]
[314574854,1708429832697,-1507.05163638,0.00020822,2]
[314574856,1708429832706,-500.0,0.00020822,2]
[314574858,1708429832716,-1507.05163638,0.00020822,2]
[314574860,1708429832725,-278.88763887,0.00020822,2]
[314574862,1708429832734,-500.0,0.00020822,2]
[314574864,1708429832744,-1507.05163638,0.00020822,2]
[314574866,1708429832753,-500.0,0.00020822,2]
[314574868,1708429832764,-1507.05163638,0.00020822,2]
[314574870,1708429832773,-500.0,0.00020822,2]
[314574872,1708429832782,-1507.05163638,0.00020822,2]
[314574874,1708429832791,-500.0,0.00020822,2]
[314574876,1708429832801,-1507.05163638,0.00020822,2]
[314574878,1708429832811,-500.0,0.00020822,2]
[314574880,1708429832820,-1507.05163638,0.00020822,2]
[314574882,1708429832829,-500.0,0.00020822,2]